lending/lending_fUSD_20240130
["ID","MTS","AMOUNT","RATE_DAILY","PERIOD"]
[313023006,1706638246189,-230.63907838,0.00027392,2]
[313023007,1706638246392,-324.69506138,0.00027392,2]
[313023008,1706638246402,-300.0,0.00027397,5]
[313023009,1706638246412,-692.54137097,0.00027397,2]
[313023010,1706638246422,-155.0,0.00027397,2]
[313023011,1706638246432,-150.0,0.00027397,2]
[313023012,1706638246442,-3000.0,0.00027397,2]
[313023013,1706638246451,-3000.0,0.00027397,2]
[313023014,1706638246460,-3000.0,0.00027397,2]
[313023015,1706638246471,-3000.0,0.00027397,2]
[313023016,1706638246480,-4368.92988304,0.00027397,2]
[313023017,1706638246490,-200.0,0.00027397,2]
[313023019,1706638246499,-167.65,0.00027397,2]
[313023020,1706638246509,-179.01,0.00027397,2]
[313023022,1706638246519,-1421.91,0.00027397,2]
[313023023,1706638246529,-159.73,0.00027397,2]
[313023024,1706638246538,-28935.39,0.00027397,2]
[313023029,1706638246732,-6005.39,0.00027397,2]
[313023030,1706638246746,-596.0,0.00027433,2]
[313023031,1706638246756,-1940.0,0.00027433,2]
[313023032,1706638246766,-1000.0,0.00027433,2]
[313023033,1706638246776,-427.0,0.00027433,2]
[313023034,1706638246784,-236.0,0.00027433,2]
[313023035,1706638246794,-320.0,0.00027433,2]
[313023036,1706638246803,-150.0,0.00027433,2]
[313023037,1706638246814,-860.0,0.00027433,2]
[313023038,1706638246824,-210.0,0.00027433,2]
[313023039,1706638246833,-314.71198551,0.00027439,15]
[313023040,1706638246842,-7379.0,0.0002744,2]
[313023041,1706638246853,-2280.0,0.0002744,2]
[313023042,1706638246863,-6066.4309437,0.0002744,2]
[313023043,1706638246874,-5415.0,0.0002744,2]
[313023044,1706638274099,1839.486,0.00022415,2]
[313023045,1706638275405,807.89754945,0.00021915,2]
[313023046,1706638275737,155.0,0.00021915,2]
[313023047,1706638279181,170.21199916,0.00021915,2]
[313023048,1706638286010,155.0,0.00021915,2]
[313023049,1706638288322,1099.55565881,0.00021915,2]
[313023050,1706638288986,284.82184002,0.00021915,2]
[313023051,1706638298164,226.34415159,0.00021915,2]
[313023053,1706638380825,300.0,0.00022408,2]
[313023054,1706638383753,206.0,0.00022465,2]
[313023064,1706638791002,497.74555716,0.00020605,5]
[313023104,1706639432207,-525.34573836,0.00022586,2]
[313023106,1706639432216,-7.1254087,0.00022587,2]
[313023107,1706639432262,-310.5645913,0.00022587,2]
[313023108,1706639432272,-443.285409,0.00022797,2]
[313023109,1706639432322,-237.13489637,0.00022797,2]
[313023110,1706639432332,-680.42030538,0.00022797,2]
[313023111,1706639432341,-162.05839473,0.00022797,2]
[313023112,1706639432350,-500.0,0.00022816,2]
[313023113,1706639432360,-367.07550151,0.00022895,2]
[313023114,1706639432369,-7053.31090201,0.00022897,2]
[313023115,1706639432381,-329.09774106,0.00022897,2]
[313023116,1706639432397,-1638.91926737,0.00022897,2]
[313023117,1706639432408,-301.0143239,0.00022897,2]
[313023118,1706639432535,-2319.70706137,0.00022897,2]
[313023194,1706639433808,206.0,0.00022353,2]
[313023196,1706639438239,-363.44975539,0.00022897,2]
[313023197,1706639438298,-22133.83429511,0.00022897,2]
[313023198,1706639438310,-15348.96425379,0.00022897,2]
[313023199,1706639438319,-5725.8,0.00023,2]
[313023200,1706639438328,-275.85,0.00023,2]
[313023201,1706639438337,-500.0,0.00023296,2]
[313023202,1706639438348,-499.99,0.00023296,2]
[313023203,1706639438358,-500.0,0.00023775,2]
[313023204,1706639438367,-201.63954653,0.00024,2]
[313023205,1706639438377,-162.17,0.00024199,2]
[313023206,1706639438386,-305.02,0.00024218,2]
[313023207,1706639438395,-250.0,0.00024218,2]
[313023208,1706639438404,-443.16,0.00024218,2]
[313023209,1706639438413,-500.0,0.00024255,2]
[313023210,1706639438423,-200.0,0.00024278,2]
[313023211,1706639438433,-4790.06590935,0.00024384,2]
[313023212,1706639438455,-927.55821456,0.00024384,2]
[313023213,1706639438466,-4641.68587609,0.00024384,2]
[313023214,1706639438476,-8257.90944217,0.00024591,2]
[313023215,1706639438487,-15632.09055783,0.00024591,2]
[313023216,1706639438496,-250.0,0.00024658,2]
[313023217,1706639438506,-7836.05,0.00024658,2]
[313023218,1706639438516,-500.0,0.00024734,2]
[313023219,1706639438526,-317.69,0.00024851,2]
[313023220,1706639438535,-427.0,0.00024934,2]
[313023221,1706639438544,-196.393,0.00024934,2]
[313023222,1706639438554,-1940.0,0.00024934,2]
[313023223,1706639438563,-574.055,0.00024934,2]
[313023224,1706639438573,-236.0,0.00024934,2]
[313023225,1706639438582,-150.0,0.00024934,2]
[313023226,1706639438591,-320.0,0.00024934,2]
[313023227,1706639438600,-860.0,0.00024934,2]
[313023228,1706639438610,-210.0,0.00024934,2]
[313023229,1706639438620,-8125.0,0.00024934,2]
[313023230,1706639438629,-7379.0,0.00024934,2]
[313023231,1706639438638,-3263.77284561,0.00024934,2]
[313023232,1706639438651,-2334.22715439,0.00024934,2]
[313023233,1706639438660,-176.157,0.00024934,2]
[313023234,1706639438669,-1023.50471065,0.00024934,2]
[313023235,1706639438681,-338.49528935,0.00024934,2]
[313023236,1706639438691,-1053.09788839,0.00024934,2]
[313023237,1706639438706,-1226.90211161,0.00024934,2]
[313023238,1706639438715,-4394.00480411,0.00024934,2]
[313023239,1706639438726,-2840.39685999,0.00024934,2]
[313023240,1706639438748,-2262.13272375,0.00024934,2]
[313023241,1706639438780,-1452.82128482,0.00024934,2]
[313023242,1706639438793,-2005.097984,0.00024934,2]
[313023243,1706639438826,-585.60278492,0.00024934,2]
[313023313,1706639443544,-408.13209907,0.00022896,2]
[313023314,1706639443554,-234.47,0.00023,2]
[313023315,1706639443564,-6222.94355841,0.00024934,2]
[313023316,1706639443573,-2914.0,0.00024934,2]
[313023317,1706639443582,-4189.0,0.00024934,2]
[313023318,1706639443591,-838.0,0.00024934,2]
[313023319,1706639443600,-949.0,0.00024934,2]
[313023320,1706639443610,-1860.0,0.00024934,2]
[313023321,1706639443619,-1033.0,0.00024934,2]
[313023322,1706639443628,-1233.0,0.00024934,2]
[313023323,1706639443638,-323.68150614,0.00025,2]
[313023324,1706639443647,-304.2742515,0.00025,2]
[313023325,1706639443656,-202.54115654,0.00025,2]
[313023326,1706639443665,-296.8161199,0.00025,2]
[313023335,1706639446348,-237.98647064,0.00022895,2]
[313023336,1706639446359,-414.24324747,0.00025,2]
[313023337,1706639446484,-1193.47389414,0.00025,2]
[313023338,1706639446493,-167.80869471,0.00025,2]
[313023339,1706639446502,-1009.57729278,0.00025,2]
[313023379,1706639457501,160.0,0.00022353,2]
[313023380,1706639459455,207.70154514,0.00022353,2]
[313023381,1706639463652,235.10419243,0.00022353,2]
[313023382,1706639463724,207.0,0.00022353,2]
[313023383,1706639467488,218.68348549,0.00022353,2]
[313023384,1706639467525,155.31524812,0.00022353,2]
[313023385,1706639468375,225.222887,0.00022353,2]
[313023386,1706639476174,155.2215676,0.00022353,2]
[313023387,1706639478798,533.51070887,0.00022353,2]
[313023388,1706639479861,155.0,0.00022353,2]
[313023389,1706639479997,890.15110927,0.00022353,2]
[313023390,1706639485969,183.48732554,0.00022353,2]
[313023391,1706639487826,257.63948872,0.00022353,2]
[313023392,1706639488896,198.25986511,0.00022353,2]
[313023393,1706639489973,155.21885268,0.00022353,2]
[313023442,1706640054977,2970.33881677,0.00021105,5]
[313023443,1706640513806,206.0,0.0002249,2]
[313023456,1706640631397,-526.44131687,0.00022903,2]
[313023457,1706640631410,-306.72,0.00022904,2]
[313023458,1706640631420,-502.63907881,0.00022933,2]
[313023459,1706640631433,-387.97709514,0.00022934,2]
[313023460,1706640631442,-328.24102195,0.00022935,2]
[313023461,1706640631452,-1000.0,0.00022935,2]
[313023462,1706640631461,-301.77033695,0.00022943,2]
[313023463,1706640631471,-19045.58215759,0.00022945,2]
[313023464,1706640631480,-150.0,0.00022945,2]
[313023465,1706640631490,-300.0,0.00022945,2]
[313023466,1706640631500,-150.0,0.00022945,2]
[313023467,1706640631509,-2259.64697604,0.00022946,2]
[313023468,1706640631520,-2259.64697604,0.00022946,2]
[313023469,1706640631531,-199.3,0.00023,2]
[313023470,1706640631541,-163.33902127,0.00023355,2]
[313023471,1706640631550,-499.99,0.00023447,2]
[313023472,1706640631560,-980.92,0.00023453,2]
[313023473,1706640631570,-150.99,0.00023453,2]
[313023474,1706640631579,-1565.84,0.00023455,2]
[313023475,1706640631588,-500.0,0.00023455,2]
[313023476,1706640631598,-201.63954653,0.00024,2]
[313023477,1706640631608,-163.33902123,0.00024092,2]
[313023478,1706640631617,-500.0,0.00024095,2]
[313023479,1706640631626,-563.0,0.00024434,2]
[313023480,1706640631635,-200.0,0.00024465,2]
[313023481,1706640631645,-1331.72455972,0.00024487,2]
[313023482,1706640631654,-1058.01331756,0.00024568,4]
[313023483,1706640631664,-486.58,0.00024569,2]
[313023484,1706640631673,-412.14,0.000246,2]
[313023485,1706640631682,-250.0,0.00024658,2]
[313023486,1706640631692,-1331.72455972,0.0002467,2]
[313023487,1706640631701,-162.55,0.00024716,2]
[313023488,1706640631711,-8632.75,0.00024731,2]
[313023489,1706640631720,-500.0,0.00024734,2]
[313023491,1706640631730,-828.55693168,0.00024752,2]
[313023493,1706640631742,-430.68859497,0.00024752,2]
[313023495,1706640631763,-968.45269273,0.00024752,2]
[313023496,1706640631775,-60.23178062,0.00024752,2]
[313023498,1706640631785,-602.58321938,0.00024773,2]
[313023502,1706640631797,-397.41678062,0.00024773,2]
[313023505,1706640631807,-162.55,0.00024784,2]
[313023507,1706640631817,-1000.0,0.000248,2]
[313023509,1706640631826,-163.33902123,0.00024829,2]
[313023511,1706640631836,-162.55,0.00024852,2]
[313023513,1706640631846,-492.46,0.00024914,2]
[313023515,1706640631856,-162.55,0.00024919,2]
[313023517,1706640631866,-162.55,0.00024987,2]
[313023519,1706640631875,-323.68150614,0.00025,2]
[313023521,1706640631885,-935.98268242,0.00025,2]
[313023523,1706640631894,-1587.92031382,0.00025,2]
[313023525,1706640631904,-1904.53326151,0.00025,2]
[313023527,1706640631914,-202.54115654,0.00025,2]
[313023529,1706640631923,-167.80869471,0.00025,2]
[313023531,1706640631933,-304.2742515,0.00025,2]
[313023533,1706640631942,-1250.0,0.00025,3]
[313023535,1706640631952,-5645.555088,0.00025,2]
[313023538,1706640631962,-500.0,0.00025018,2]
[313023540,1706640631972,-200.0,0.00025018,2]
[313023542,1706640631981,-200.0,0.00025018,2]
[313023544,1706640631990,-2249.128,0.00025034,2]
[313023546,1706640632000,-162.55,0.00025055,2]
[313023548,1706640632010,-162.55,0.00025123,2]
[313023550,1706640632020,-1357.0,0.00025134,2]
[313023552,1706640632029,-1860.0,0.00025134,2]
[313023554,1706640632039,-838.0,0.00025134,2]
[313023556,1706640632048,-949.0,0.00025134,2]
[313023558,1706640632057,-1233.0,0.00025134,2]
[313023560,1706640632067,-301.76,0.00025134,2]
[313023561,1706640632076,-1940.0,0.00025134,2]
[313023562,1706640632086,-860.0,0.00025134,2]
[313023563,1706640632098,-320.0,0.00025134,2]
[313023564,1706640632108,-150.0,0.00025134,2]
[313023565,1706640632118,-210.0,0.00025134,2]
[313023566,1706640632127,-2914.0,0.00025134,2]
[313023567,1706640632136,-581.087,0.00025134,2]
[313023568,1706640632146,-7379.0,0.00025134,2]
[313023569,1706640632155,-3348.261,0.00025134,2]
[313023570,1706640632165,-2280.0,0.00025134,2]
[313023571,1706640632175,-8125.0,0.00025134,2]
[313023572,1706640632184,-19763.0,0.00025134,2]
[313023573,1706640632194,-150.0,0.00025134,2]
[313023574,1706640632204,-1033.0,0.00025134,2]
[313023575,1706640632213,-306.72,0.00025168,2]
[313023576,1706640632223,-162.55,0.00025191,2]
[313023577,1706640632232,-210.0,0.0002524,2]
[313023578,1706640632241,-210.0,0.0002524,2]
[313023579,1706640632251,-162.55,0.00025258,2]
[313023580,1706640632261,-1331.72455972,0.00025323,2]
[313023581,1706640632271,-162.55,0.00025326,2]
[313023582,1706640632280,-500.0,0.00025374,2]
[313023583,1706640632289,-162.55,0.00025394,2]
[313023584,1706640632299,-162.55,0.00025462,2]
[313023585,1706640632308,-1331.72455972,0.0002548,2]
[313023586,1706640632317,-162.55,0.00025529,2]
[313023587,1706640632327,-163.33902123,0.00025567,2]
[313023588,1706640632337,-162.55,0.00025597,2]
[313023589,1706640632352,-167.0,0.00025619,2]
[313023590,1706640632364,-162.55,0.00025665,2]
[313023591,1706640632375,-162.55,0.00025733,2]
[313023592,1706640632384,-162.55,0.00025801,2]
[313023593,1706640632395,-162.55,0.00025868,2]
[313023594,1706640632405,-206.0,0.000259,7]
[313023595,1706640632414,-162.55,0.00025936,2]
[313023596,1706640632424,-162.55,0.00026004,2]
[313023597,1706640632434,-500.0,0.00026013,2]
[313023598,1706640632444,-150.0,0.00026079,2]
[313023599,1706640632454,-163.33902123,0.00026304,2]
[313023600,1706640632463,-176.73,0.00026405,2]
[313023601,1706640632473,-492.46,0.00026558,2]
[313023602,1706640632482,-500.0,0.00026653,2]
[313023603,1706640632491,-300.0,0.000268,9]
[313023604,1706640632501,-600.0,0.000269,9]
[313023605,1706640632510,-176.73,0.00026953,2]
[313023606,1706640632519,-1300.0,0.00027,3]
[313023607,1706640632530,-1398.0677,0.0002703,2]
[313023608,1706640632540,-163.33902123,0.00027041,2]
[313023609,1706640632549,-2796.2324,0.00027062,2]
[313023610,1706640632558,-3059.27150435,0.00027128,2]
[313023611,1706640632568,-1032.62495001,0.00027129,2]
[313023612,1706640632577,-22635.3430364,0.0002713,2]
[313023613,1706640632586,-800.0,0.00027221,2]
[313023614,1706640632596,-276.6938,0.00027235,2]
[313023615,1706640632607,-2000.0,0.00027305,3]
[313023616,1706640632617,-1000.0,0.00027305,2]
[313023617,1706640632626,-3108.05740872,0.00027309,2]
[313023618,1706640632635,-153.43601475,0.00027309,2]
[313023619,1706640632645,-188.47457395,0.00027309,2]
[313023620,1706640632654,-823.53673714,0.00027309,3]
[313023621,1706640632663,-2798.35741632,0.00027338,6]
[313023622,1706640632673,-4379.5204,0.00027338,2]
[313023623,1706640632682,-236.27,0.00027338,2]
[313023624,1706640632691,-47.4328731,0.00027339,2]
[313023625,1706640633115,-116.8171269,0.00027339,2]
[313023626,1706640633124,-190.09319733,0.00027395,2]
[313023627,1706640633133,-136.92564703,0.00027397,5]
[313023628,1706640633145,-163.07435297,0.00027397,5]
[313023629,1706640633154,-155.0,0.00027397,2]
[313023630,1706640633163,-150.0,0.00027397,2]
[313023631,1706640633172,-1457.4,0.00027397,2]
[313023632,1706640633181,-4033.02564703,0.00027397,2]
[313023633,1706640633197,-498.696,0.00027397,2]
[313023634,1706640633209,-873.12835297,0.00027397,2]
[313023635,1706640633218,-300.0,0.000274,2]
[313023636,1706640633227,-500.0,0.000274,2]
[313023637,1706640633236,-500.0,0.000274,2]
[313023638,1706640633245,-200.0,0.000274,2]
[313023639,1706640633254,-3000.0,0.000274,2]
[313023640,1706640633263,-314.4194,0.000274,2]
[313023641,1706640633272,-500.0,0.00027404,2]
[313023642,1706640633281,-500.0,0.00027404,2]
[313023643,1706640633290,-620.0,0.00027404,2]
[313023644,1706640633300,-232.19045124,0.00027405,2]
[313023645,1706640633310,-2720.45697339,0.00027405,2]
[313023646,1706640633330,-325.50054653,0.00027405,2]
[313023647,1706640633344,-2784.51649125,0.00027405,2]
[313023648,1706640633355,-550.00454435,0.00027405,2]
[313023649,1706640633374,-1502.28437207,0.00027405,2]
[313023650,1706640633387,-479.70601001,0.00027405,2]
[313023651,1706640633399,-1603.04621236,0.00027405,2]
[313023652,1706640633411,-3485.27784583,0.00027405,2]
[313023653,1706640633424,-587.5153374,0.00027405,2]
[313023654,1706640633445,-2146.34346985,0.00027405,2]
[313023655,1706640633461,-319318.1819787,0.00027405,2]
[313023656,1706640633472,-250.0,0.00027405,2]
[313023657,1706640633483,-770.6744694,0.00027405,2]
[313023658,1706640633501,-10468.8,0.00027405,2]
[313023659,1706640633516,-6018.7139029,0.00027405,2]
[313023660,1706640633533,-2319.75960606,0.00027405,2]
[313023661,1706640637411,-4917.8362165,0.00027405,2]
[313023662,1706640637422,-5067.72629651,0.00027405,2]
[313023663,1706640637435,-154608.17739414,0.00027405,2]
[313023664,1706640637581,-25621.34134565,0.00027405,2]
[313023665,1706640637593,-3077.77406271,0.00027405,2]
[313023666,1706640637616,-2101.5,0.00027405,2]
[313023667,1706640637628,-1299.01489791,0.00027405,2]
[313023668,1706640637639,-578.267575,0.00027405,2]
[313023669,1706640637658,-543.68032293,0.00027405,2]
[313023670,1706640637670,-344.4364066,0.00027405,2]
[313023671,1706640637682,-652.69310717,0.00027405,2]
[313023672,1706640637693,-4669.94190803,0.00027405,2]
[313023673,1706640637716,-475.255011,0.00027405,2]
[313023914,1706640640020,-26003.1606791,0.00027405,2]
[313023916,1706640640033,-30667.09225889,0.00027405,2]
[313023935,1706640640697,-513.12733178,0.00027405,2]
[313023936,1706640640709,-631.96474979,0.00027405,2]
[313023937,1706640640853,-1242.08461943,0.00027405,2]
[313023938,1706640640879,-81035.58407745,0.00027405,2]
[313023939,1706640640890,-1057.19,0.00027405,2]
[313023940,1706640640943,-50000.25326503,0.00027405,2]
[313023955,1706640643697,-327.22122733,0.00027404,2]
[313023956,1706640643707,-361.8381947,0.00027404,2]
[313023957,1706640643718,-481.44458914,0.00027404,2]
[313023958,1706640643730,-4467.12817429,0.00027404,2]
[313023959,1706640643739,-16582.68432571,0.00027405,2]
[313023960,1706640643759,-1990.06970528,0.00027405,2]
[313023961,1706640643771,-367.35689801,0.00027405,2]
[313023962,1706640643787,-6977.6865825,0.00027405,2]
[313023963,1706640643812,-5042.33487039,0.00027405,2]
[313023986,1706640645503,-166.61717898,0.00025,2]
[313023987,1706640645514,-526.01827643,0.00027404,2]
[313023988,1706640645524,-201.17893978,0.00027404,2]
[313023989,1706640645534,-3081.76706969,0.00027405,2]
[313023990,1706640645545,-260.87001514,0.00027405,2]
[313023991,1706640645571,-813.26,0.00027405,2]
[313023992,1706640645590,-1185.00000028,0.00027405,2]
[313023993,1706640645602,-3492.96191445,0.00027405,2]
[313023994,1706640645682,-5013.99694922,0.00027405,2]
[313023995,1706640645743,-1000.0,0.00027405,2]
[313023996,1706640645754,-752.20274444,0.00027405,2]
[313023997,1706640645766,-409.248,0.00027405,2]
[313023998,1706640645810,-30412.26066062,0.00027405,2]
[313023999,1706640645821,-2302.4375626,0.00027405,6]
[313024000,1706640645829,-215.98685375,0.00027409,2]
[313024001,1706640645840,-306.72,0.00027432,2]
[313024002,1706640645849,-1841.18170352,0.00027433,6]
[313024003,1706640645859,-424.0,0.00027433,5]
[313024004,1706640645868,-302.84837453,0.00027434,2]
[313024006,1706640645878,-155.0,0.00027434,2]
[313024008,1706640645887,-400.0,0.00027434,2]
[313024010,1706640645896,-488.19421159,0.00027434,2]
[313024012,1706640645906,-231.42613239,0.00027434,2]
[313024014,1706640645915,-292.70291374,0.00027434,2]
[313024016,1706640645924,-310.77911582,0.00027435,2]
[313024018,1706640645933,-6441.03694263,0.00027435,2]
[313024020,1706640645942,-390.90216645,0.00027435,2]
[313024022,1706640645951,-220.10875743,0.00027435,2]
[313024024,1706640645960,-155.0,0.00027435,2]
[313024026,1706640645969,-156.30183788,0.00027435,2]
[313024028,1706640645978,-155.0,0.00027435,2]
[313024030,1706640645987,-697.90157938,0.00027435,2]
[313024032,1706640645996,-155.0,0.00027435,2]
[313024034,1706640646006,-1763.39934784,0.00027435,2]
[313024036,1706640646015,-23932.55608075,0.00027435,2]
[313024038,1706640646024,-362.44210625,0.00027435,2]
[313024040,1706640646034,-281.91214692,0.00027436,2]
[313024042,1706640646043,-197.15492761,0.00027436,2]
[313024044,1706640646052,-10473.64165747,0.00027436,2]
[313024046,1706640646061,-280.96111801,0.00027436,2]
[313024048,1706640646071,-10512.98839623,0.00027436,2]
[313024050,1706640646080,-303.66693744,0.00027437,2]
[313024052,1706640646089,-159.97415907,0.00027437,2]
[313024054,1706640646099,-253.24142264,0.00027437,2]
[313024056,1706640646108,-532.93915893,0.00027437,2]
[313024058,1706640646117,-265.60479765,0.00027437,2]
[313024060,1706640646126,-2667.07296721,0.00027437,2]
[313024062,1706640646135,-392.32417861,0.00027437,2]
[313024064,1706640646145,-155.0,0.00027437,2]
[313024066,1706640646154,-199.27008978,0.00027437,2]
[313024068,1706640646163,-155.0,0.00027437,2]
[313024070,1706640646172,-474.20164571,0.00027437,2]
[313024072,1706640646181,-2142.39385977,0.00027437,2]
[313024074,1706640646190,-314.91414561,0.00027437,2]
[313024076,1706640646199,-235.61013094,0.00027437,2]
[313024078,1706640646209,-338.32247396,0.00027437,2]
[313024080,1706640646218,-581.70009375,0.00027437,2]
[313024082,1706640646227,-543.89474712,0.00027437,2]
[313024084,1706640646236,-164.03550652,0.00027437,2]
[313024086,1706640646246,-240.30506348,0.00027438,2]
[313024088,1706640646255,-575.825,0.00027439,2]
[313024090,1706640646264,-4012.6834381,0.0002744,2]
[313024092,1706640646274,-259.5996327,0.0002744,2]
[313024094,1706640646284,-41730.9978564,0.00027459,2]
[313024096,1706640646294,-2287.6721718,0.00027459,2]
[313024098,1706640646303,-200.0,0.00027484,2]
[313024100,1706640646313,-2599.88218869,0.00027484,2]
[313024102,1706640646322,-155.0,0.000275,2]
[313024104,1706640646331,-352.89,0.00027501,2]
[313024106,1706640646341,-5404.85,0.00027556,2]
[313024108,1706640646354,-1457.4,0.00027614,2]
[313024110,1706640646363,-5404.85,0.00027714,2]
[313024112,1706640646372,-293.0,0.00027763,2]
[313024114,1706640646381,-293.0,0.00027763,2]
[313024117,1706640646392,-163.33902123,0.00027778,2]
[313024119,1706640646401,-1457.4,0.0002783,2]
[313024120,1706640646411,-1000.0,0.0002787,2]
[313024123,1706640646420,-5404.85,0.00027872,2]
[313024125,1706640646431,-247.872529,0.000279,2]
[313024127,1706640646441,-160.41167999,0.00027933,15]
[313024129,1706640646452,-300.0,0.00027945,5]
[313024131,1706640646461,-154.63222569,0.00027945,2]
[313024133,1706640646470,-693.63334038,0.00028,2]
[313024135,1706640646479,-5404.85,0.0002803,2]
[313024137,1706640646489,-1457.4,0.00028046,2]
[313024139,1706640646498,-233.028,0.00028134,2]
[313024141,1706640646507,-838.0,0.00028134,2]
[313024143,1706640646517,-949.0,0.00028134,2]
[313024145,1706640646526,-1233.0,0.00028134,2]
[313024147,1706640646537,-1930.0,0.00028134,2]
[313024149,1706640646546,-230.744,0.00028134,2]
[313024151,1706640646554,-210.0,0.00028134,2]
[313024153,1706640646563,-2914.0,0.00028134,2]
[313024155,1706640646572,-3860.525,0.00028134,2]
[313024157,1706640646582,-2280.0,0.00028134,2]
[313024159,1706640646591,-6555.725,0.00028134,2]
[313024161,1706640646600,-19763.0,0.00028134,2]
[313024163,1706640646608,-1033.0,0.00028134,2]
[313024165,1706640646617,-5404.85,0.00028189,2]
[313024167,1706640646627,-492.46,0.00028201,2]
[313024169,1706640646636,-1457.4,0.00028262,2]
[313024171,1706640646646,-175.61,0.00028307,2]
[313024173,1706640646656,-167.0,0.00028307,2]
[313024175,1706640646665,-5404.85,0.00028347,2]
[313024177,1706640646675,-312.717784,0.000284,2]
[313024179,1706640646684,-814.136734,0.000284,2]
[313024181,1706640646693,-814.136734,0.000284,2]
[313024183,1706640646702,-3000.0,0.000284,2]
[313024185,1706640646711,-535.47499119,0.00028425,2]
[313024187,1706640646720,-3108.05740865,0.00028454,2]
[313024189,1706640646729,-500.0,0.00028476,2]
[313024190,1706640646739,-1457.4,0.00028479,2]
[313024192,1706640646748,-300.0,0.00028493,5]
[313024195,1706640646758,-5404.85,0.00028505,2]
[313024196,1706640646767,-163.33902123,0.00028516,2]
[313024199,1706640646777,-5404.85,0.00028664,2]
[313024201,1706640646787,-1457.4,0.00028695,2]
[313024203,1706640646796,-155.0,0.00028767,2]
[313024205,1706640646805,-5404.85,0.00028822,2]
[313024206,1706640646814,-2073.3252585,0.0002888,2]
[313024208,1706640646823,-1457.4,0.00028911,2]
[313024210,1706640646832,-11492.07124304,0.00029,15]
[313024212,1706640646841,-157.02612208,0.00029,2]
[313024214,1706640646851,-1350.0,0.00029,3]
[313024215,1706640646860,-300.0,0.00029041,5]
[313024216,1706640646869,-823.53673708,0.00029108,4]
[313024217,1706640646878,-1457.4,0.00029128,2]
[313024218,1706640646887,-163.33902123,0.00029253,2]
[313024219,1706640646896,-206.0,0.0002931,12]
[313024220,1706640646905,-1457.4,0.00029344,2]
[313024221,1706640646914,-3332.35584,0.000294,2]
[313024222,1706640646924,-155.0,0.000295,3]
[313024223,1706640646933,-1457.4,0.0002956,2]
[313024224,1706640646942,-491.71038004,0.00029589,5]
[313024225,1706640646952,-3108.05740865,0.00029598,2]
[313024226,1706640646961,-500.0,0.00029676,2]
[313024227,1706640646971,-500.0,0.00029676,2]
[313024228,1706640646981,-500.0,0.00029676,2]
[313024229,1706640646990,-500.0,0.00029676,2]
[313024230,1706640647000,-500.0,0.00029676,2]
[313024231,1706640647010,-500.0,0.00029676,2]
[313024232,1706640647020,-500.0,0.00029676,2]
[313024233,1706640647031,-500.0,0.00029676,2]
[313024234,1706640647040,-500.0,0.00029676,2]
[313024235,1706640647050,-500.0,0.00029676,2]
[313024236,1706640647059,-500.0,0.00029676,2]
[313024237,1706640647068,-500.0,0.00029676,2]
[313024238,1706640647077,-500.0,0.00029676,2]
[313024239,1706640647087,-500.0,0.00029676,2]
[313024240,1706640647096,-500.0,0.00029676,2]
[313024241,1706640647105,-500.0,0.00029676,2]
[313024242,1706640647114,-500.0,0.00029676,2]
[313024243,1706640647123,-500.0,0.00029676,2]
[313024244,1706640647132,-500.0,0.00029676,2]
[313024245,1706640647141,-500.0,0.00029676,2]
[313024246,1706640647150,-450.0,0.00029676,2]
[313024247,1706640647160,-500.0,0.00029676,2]
[313024248,1706640647168,-500.0,0.00029676,2]
[313024249,1706640647178,-500.0,0.00029676,2]
[313024250,1706640647187,-500.0,0.00029676,2]